bitfinex/quotes_BTCUSD_20230404
["timestamp","ask_amount","ask_price","bid_price","bid_amount"]
[1680599261849,0.02708437,28112.0,28109.0,0.29511603]
[1680599262074,0.02708437,28112.0,28111.0,0.08428278]
[1680599262321,0.0008,28115.0,28111.0,0.67317795]
[1680599262544,0.0008,28115.0,28114.0,0.3]
[1680599263200,0.02636772,28115.0,28114.0,0.30018]
[1680599263422,0.02636772,28115.0,28114.0,0.42640321]
[1680599263674,0.02636772,28115.0,28114.0,0.5106615]
[1680599263905,0.02636772,28115.0,28114.0,0.84668344]
[1680599264123,0.02636772,28115.0,28114.0,0.84668365]
[1680599264339,0.02836772,28115.0,28114.0,0.85768365]
[1680599264567,0.02836772,28115.0,28114.0,0.93093583]
[1680599264568,0.02636772,28115.0,28114.0,0.93093583]
[1680599264780,0.02636772,28115.0,28114.0,0.85768365]
[1680599264781,0.02836772,28115.0,28114.0,0.85768365]
[1680599265262,0.0008,28115.0,28114.0,0.84668365]
[1680599265491,0.0028,28115.0,28114.0,0.85768365]
[1680599266640,0.0027186,28115.0,28114.0,1.02604577]
[1680599266861,0.0027186,28115.0,28114.0,0.85750365]
[1680599267078,0.0027186,28115.0,28114.0,1.02598577]
[1680599267554,0.0027186,28115.0,28114.0,0.85750365]
[1680599268729,0.0027186,28115.0,28114.0,1.28667696]
[1680599268958,0.0027186,28115.0,28114.0,0.85750365]
[1680599269628,0.0027186,28115.0,28114.0,1.02598577]
[1680599270314,0.0027186,28115.0,28114.0,1.46416107]
[1680599270758,0.0027186,28115.0,28114.0,1.29567895]
[1680599271418,0.0027186,28115.0,28114.0,1.02598577]
[1680599271862,0.0027186,28115.0,28114.0,0.89958256]
[1680599272079,0.0027186,28115.0,28114.0,1.02591273]
[1680599273945,0.0027186,28115.0,28114.0,1.19655273]
[1680599274164,0.0008,28119.0,28115.0,0.00026325]
[1680599274389,0.0008,28119.0,28118.0,0.3]
[1680599274822,0.0008,28119.0,28118.0,0.38419088]
[1680599275255,0.0008,28119.0,28118.0,0.46869088]
[1680599275481,0.0008,28119.0,28118.0,1.10145621]
[1680599275689,0.0008,28119.0,28118.0,1.18586264]
[1680599275912,0.02358505,28121.0,28120.0,0.2]
[1680599276128,0.4479619,28133.0,28120.0,0.2]
[1680599276129,0.41355838,28134.0,28121.0,0.3]
[1680599276361,0.00018,28133.0,28126.0,0.084]
[1680599276598,0.03195838,28134.0,28127.0,0.14189681]
[1680599276599,0.06820382,28134.0,28127.0,0.14189681]
[1680599276872,0.4645487,28134.0,28127.0,0.14207681]
[1680599277104,0.56198975,28134.0,28127.0,0.14207681]
[1680599277320,0.02936477,28133.0,28127.0,0.14207681]
[1680599278001,0.02936477,28133.0,28127.0,0.17007681]
[1680599278920,0.02936477,28133.0,28127.0,0.14207681]
[1680599279144,0.02936477,28133.0,28127.0,0.17007681]
[1680599279626,0.02936477,28133.0,28128.0,0.34403908]
[1680599279627,0.38856251,28132.0,28128.0,0.34403908]
[1680599279838,0.3233,28131.0,28128.0,0.34421908]
[1680599280052,0.3233,28131.0,28128.0,0.00018]
[1680599280053,0.053504,28130.0,28128.0,0.00018]
[1680599280304,0.02954477,28133.0,28126.0,0.00018]
[1680599280522,0.02936477,28133.0,28128.0,0.028]
[1680599280760,0.02936477,28133.0,28129.0,0.44419937]
[1680599280988,0.02936477,28133.0,28129.0,0.44437937]
[1680599281214,0.32936477,28133.0,28129.0,0.14207681]
[1680599281435,0.02936477,28133.0,28129.0,0.3875545]
[1680599281647,0.02936477,28133.0,28129.0,0.3877345]
[1680599281857,0.48493615,28133.0,28129.0,0.3877345]
[1680599282079,0.02954477,28133.0,28129.0,0.20579954]
[1680599282287,0.02936477,28133.0,28129.0,0.22979954]
[1680599282537,0.02954477,28133.0,28129.0,0.20579954]
[1680599282742,0.02936477,28133.0,28129.0,0.23379954]
[1680599282978,0.02954477,28133.0,28129.0,0.20579954]
[1680599283206,0.02936477,28133.0,28129.0,0.20579954]
[1680599283635,0.02936477,28133.0,28129.0,0.22979954]
[1680599283868,0.02954477,28133.0,28129.0,0.22979954]
[1680599284582,0.02954477,28133.0,28129.0,0.20579954]
[1680599284795,0.02936477,28133.0,28129.0,0.23379954]
[1680599285023,0.41597874,28133.0,28129.0,0.20579954]
[1680599285246,0.39984426,28132.0,28129.0,0.22979954]
[1680599285459,0.40002426,28132.0,28129.0,0.20579954]
[1680599285715,0.40002426,28132.0,28129.0,0.23379954]
[1680599285908,0.40002426,28132.0,28129.0,0.20579954]
[1680599286124,0.00018,28132.0,28129.0,0.20579954]
[1680599286348,0.02936477,28133.0,28129.0,0.22979954]
[1680599286575,0.41882137,28133.0,28129.0,0.22979954]
[1680599287718,0.41882137,28133.0,28129.0,0.20579954]
[1680599287947,0.41882137,28133.0,28129.0,0.22979954]
[1680599288152,0.4676463,28133.0,28129.0,0.22979954]
[1680599289267,0.4676463,28133.0,28129.0,0.024]
[1680599289268,0.50499117,28132.0,28129.0,0.024]
[1680599289485,0.055124,28131.0,28129.0,0.024]
[1680599290165,0.02962568,28130.0,28129.0,0.024]
[1680599290406,0.02962568,28130.0,28128.0,0.20035944]
[1680599290659,0.07763507,28130.0,28129.0,0.024]
[1680599290882,0.07763507,28130.0,28128.0,0.20035944]
[1680599291128,0.051566,28129.0,28128.0,0.20035944]
[1680599291341,0.46692754,28130.0,28129.0,0.024]
[1680599291594,0.52042554,28130.0,28126.0,0.4978068]
[1680599291817,0.46692754,28130.0,28126.0,0.4978068]
[1680599292035,0.46692754,28130.0,28126.0,0.1978068]
[1680599292330,0.052341,28129.0,28127.0,0.12940579]
[1680599293868,0.44900721,28129.0,28127.0,0.12940579]
[1680599294085,0.053691,28128.0,28127.0,0.15740579]
[1680599294313,0.30650823,28128.0,28125.0,0.00018]
[1680599294548,0.0189,28126.0,28122.0,0.21355725]
[1680599294775,0.0189,28123.0,28122.0,0.21355725]
[1680599295217,0.0189,28123.0,28121.0,0.00018]
[1680599295449,0.0189,28123.0,28117.0,0.38432105]
[1680599295676,0.0189,28123.0,28122.0,0.26862524]
[1680599295897,0.0189,28123.0,28120.0,0.00018]
[1680599296138,0.0189,28123.0,28122.0,0.028]
[1680599296358,0.0189,28123.0,28117.0,0.30018]
[1680599296581,0.0189,28123.0,28122.0,0.011]
[1680599296804,0.0189,28123.0,28118.0,0.25991284]
[1680599297023,0.09490154,28123.0,28118.0,0.25991284]
[1680599297266,0.09490154,28123.0,28122.0,0.011]
[1680599297471,0.0189,28123.0,28117.0,0.30018]
[1680599297692,0.0189,28123.0,28118.0,0.028]
[1680599297911,0.0189,28123.0,28117.0,0.30018]
[1680599298118,0.0189,28123.0,28122.0,0.011]
[1680599298805,0.00018,28125.0,28122.0,0.011]
[1680599298806,0.44172239,28125.0,28122.0,0.011]
[1680599299033,0.354177,28124.0,28117.0,0.30018]
[1680599299264,0.3,28124.0,28118.0,0.27555026]
[1680599299478,0.45440206,28123.0,28118.0,0.24773026]
[1680599299706,0.45440206,28123.0,28122.0,0.011]
[1680599299949,0.50669606,28123.0,28118.0,0.24773026]
[1680599300167,0.54323666,28123.0,28118.0,0.24773026]
[1680599300601,0.54323666,28123.0,28122.0,0.011]
[1680599300825,0.59594666,28123.0,28122.0,0.011]
[1680599301047,0.59594666,28123.0,28118.0,0.24773026]
[1680599301262,0.54323666,28123.0,28118.0,0.24773026]
[1680599301480,0.08434167,28122.0,28118.0,0.24773026]
[1680599301922,0.08434167,28122.0,28119.0,0.12206056]
[1680599302814,0.30018,28124.0,28119.0,0.12206056]
[1680599303045,0.6501162,28125.0,28119.0,0.29195737]
[1680599303273,0.6501162,28125.0,28120.0,0.14189681]
[1680599303727,0.00018,28125.0,28121.0,0.014224]
[1680599303952,0.02962568,28130.0,28123.0,0.0835]
[1680599304186,0.46543053,28130.0,28125.0,0.3]
[1680599304414,0.46543053,28130.0,28126.0,0.14189681]
[1680599304630,0.00018,28130.0,28126.0,0.14189681]
[1680599304886,0.72706638,28134.0,28127.0,0.19092361]
[1680599304887,0.33663168,28131.0,28127.0,0.19092361]
[1680599305120,0.33663168,28131.0,28127.0,0.33282042]
[1680599305346,0.02573901,28129.0,28127.0,0.19092361]
[1680599305799,0.46834412,28129.0,28125.0,0.30018]
[1680599306031,0.46834412,28129.0,28126.0,0.15128339]
[1680599306032,0.43228705,28129.0,28126.0,0.15128339]
[1680599306244,0.43228705,28129.0,28124.0,0.00018]
[1680599306245,0.02591901,28129.0,28127.0,0.20628679]
[1680599306481,0.02573901,28129.0,28127.0,0.23428679]
[1680599306923,0.07204678,28129.0,28127.0,0.028]
[1680599307145,0.47986855,28129.0,28125.0,0.22511879]
[1680599307425,0.48004855,28129.0,28125.0,0.22511879]
[1680599308009,0.34141793,28128.0,28125.0,0.22511879]
[1680599308232,0.34141793,28128.0,28126.0,0.028]
[1680599308465,0.34159793,28128.0,28125.0,0.25329879]
[1680599308694,0.34159793,28128.0,28126.0,0.12235095]
[1680599309131,0.34141793,28128.0,28126.0,0.15035095]
[1680599309369,0.3829624,28128.0,28126.0,0.12235095]
[1680599309586,0.3829624,28128.0,28126.0,0.15035095]
[1680599309799,0.3829624,28128.0,28124.0,0.21108291]
[1680599310019,0.3827824,28128.0,28126.0,0.028]
[1680599310238,0.3829624,28128.0,28126.0,0.028]
[1680599310683,0.34159793,28128.0,28126.0,0.028]
[1680599310902,0.34159793,28128.0,28125.0,0.11285627]
[1680599311118,0.34159793,28128.0,28126.0,0.028]
[1680599311378,0.00018,28128.0,28127.0,0.12903838]
[1680599311592,0.02573901,28129.0,28127.0,0.12903838]
[1680599311593,0.02591901,28129.0,28127.0,0.12903838]
[1680599311805,0.4845143,28129.0,28127.0,0.12903838]
[1680599312296,0.02591901,28129.0,28126.0,0.028]
[1680599312491,0.02573901,28129.0,28126.0,0.14189681]
[1680599312724,0.02573901,28129.0,28127.0,0.22174214]
[1680599313029,0.02573901,28129.0,28127.0,0.19774214]
[1680599313270,0.00018,28130.0,28127.0,0.19774214]
[1680599314183,0.00018,28132.0,28127.0,0.19774214]
[1680599314414,0.39429019,28132.0,28127.0,0.36363895]
[1680599314641,0.3,28131.0,28127.0,0.36363895]
[1680599314864,0.30018,28131.0,28127.0,0.22174214]
[1680599315001,0.30018,28131.0,28127.0,0.19774214]
[1680599315244,0.30018,28131.0,28128.0,0.16521283]
[1680599316033,7.956e-05,28132.0,28128.0,0.00018]
[1680599316236,0.02313738,28134.0,28128.0,0.35242943]
[1680599316436,0.47893349,28134.0,28129.0,0.22603786]
[1680599316797,0.47893349,28134.0,28129.0,0.22621786]
[1680599317045,0.02313738,28134.0,28130.0,0.3]
[1680599317254,0.02313738,28134.0,28130.0,0.30018]
[1680599317475,0.36779905,28134.0,28130.0,0.00018]
[1680599317688,0.76652515,28133.0,28130.0,0.00018]
[1680599317917,0.76652515,28133.0,28129.0,0.05892607]
[1680599317918,0.053399,28132.0,28129.0,0.05892607]
[1680599318133,0.053399,28132.0,28129.0,0.03092607]
[1680599318376,0.053399,28132.0,28130.0,0.028]
[1680599318377,0.08294144,28132.0,28130.0,0.028]
[1680599318600,0.08294144,28132.0,28130.0,0.26671262]
[1680599318601,0.02954244,28132.0,28130.0,0.26671262]
[1680599318806,0.02954244,28132.0,28130.0,0.26689262]
[1680599320596,0.02954244,28132.0,28130.0,0.28389262]
[1680599320820,0.02954244,28132.0,28130.0,0.26689262]
[1680599321043,0.02954244,28132.0,28130.0,0.27789262]
[1680599321268,0.02954244,28132.0,28130.0,0.26689262]
[1680599321485,0.02954244,28132.0,28130.0,0.28389262]
[1680599322363,0.02954244,28132.0,28130.0,0.13349769]
[1680599322836,0.00033376,28131.0,28130.0,0.13349769]
[1680599323306,0.48318553,28131.0,28130.0,0.017]
[1680599323525,0.32774953,28131.0,28130.0,0.017]
[1680599323978,0.32774953,28131.0,28129.0,0.10174599]
[1680599324194,0.32774953,28131.0,28130.0,0.017]
[1680599325451,0.32774953,28131.0,28129.0,0.10174599]
[1680599325664,0.32774953,28131.0,28129.0,0.12574599]
[1680599325881,0.32774953,28131.0,28129.0,0.10174599]
[1680599326084,0.32774953,28131.0,28130.0,0.017]
[1680599326448,0.02774953,28131.0,28129.0,0.10174599]
[1680599326872,0.02774953,28131.0,28129.0,0.12574599]
[1680599327443,0.02774953,28131.0,28130.0,0.08414105]
[1680599327906,0.02774953,28131.0,28130.0,0.38414105]
[1680599328197,0.02774953,28131.0,28130.0,0.38432105]
[1680599328487,0.42532825,28134.0,28130.0,0.38432105]
[1680599328488,0.02313738,28134.0,28130.0,0.38432105]
[1680599328993,0.02313738,28134.0,28130.0,0.47396364]
[1680599329358,0.02693271,28133.0,28130.0,0.47396364]
[1680599329585,0.00033376,28131.0,28130.0,0.47396364]
[1680599329847,0.00033376,28131.0,28130.0,0.50196364]
[1680599330132,0.00033376,28131.0,28130.0,0.47396364]
[1680599330380,0.02313738,28134.0,28130.0,0.50196364]
[1680599331169,0.02313738,28134.0,28131.0,0.11063159]
[1680599331443,0.02645865,28133.0,28131.0,0.11063159]
[1680599331689,0.02645865,28133.0,28131.0,0.11081159]
[1680599332786,0.02645865,28133.0,28131.0,0.13881159]
[1680599333469,0.07939708,28133.0,28131.0,0.13881159]
[1680599334144,0.07939708,28133.0,28131.0,0.11081159]
[1680599334341,0.07939708,28133.0,28131.0,0.13881159]
[1680599334580,0.07939708,28133.0,28131.0,0.11081159]
[1680599334799,0.07939708,28133.0,28131.0,0.13881159]
[1680599335990,0.02645865,28133.0,28131.0,0.13881159]
[1680599337337,0.02645865,28133.0,28132.0,0.09099955]
[1680599338934,0.02645865,28133.0,28132.0,0.11499955]
[1680599339197,0.02645865,28133.0,28132.0,0.11517955]
[1680599339979,0.02645865,28133.0,28132.0,0.11499955]
[1680599343768,0.02636674,28133.0,28132.0,0.11499955]
[1680599344686,0.02636674,28133.0,28132.0,0.024]
[1680599344687,0.03361615,28133.0,28132.0,0.024]
[1680599344941,0.48486643,28133.0,28132.0,0.024]
[1680599345188,0.54281399,28133.0,28132.0,0.024]
[1680599345412,0.84267443,28133.0,28132.0,0.024]
[1680599345632,0.84281399,28133.0,28128.0,0.08414105]
[1680599345854,0.43788514,28132.0,28128.0,0.08414105]
[1680599346075,0.3867347,28132.0,28128.0,0.16712355]
[1680599346307,0.30013956,28132.0,28130.0,0.09563828]
[1680599346552,0.30013956,28132.0,28128.0,0.08414105]
[1680599346553,0.32305476,28132.0,28128.0,0.08414105]
[1680599346801,0.68754045,28132.0,28128.0,0.19784493]
[1680599347041,0.68754045,28132.0,28128.0,0.3130565]
[1680599347289,0.68754045,28132.0,28130.0,0.011]
[1680599347512,0.68754045,28132.0,28129.0,0.08414105]
[1680599347979,0.68754045,28132.0,28129.0,0.19608316]
[1680599348985,0.38942705,28131.0,28129.0,0.20708316]
[1680599349217,0.38942705,28131.0,28129.0,0.09514105]
[1680599349463,0.38942705,28131.0,28130.0,0.08414105]
[1680599349680,0.68942705,28131.0,28130.0,0.07914105]
[1680599350316,0.68942705,28131.0,28129.0,0.22054404]
[1680599350534,0.68928749,28131.0,28130.0,0.011]
[1680599351044,0.3,28131.0,28130.0,0.10301124]
[1680599351267,0.00013956,28131.0,28130.0,0.10301124]
[1680599351486,0.02273151,28131.0,28130.0,0.09201124]
[1680599351732,0.01773151,28131.0,28130.0,0.09601124]
[1680599352224,0.01773151,28131.0,28130.0,0.09201124]
[1680599352440,0.02237436,28131.0,28130.0,0.10301124]
[1680599354236,0.02237436,28131.0,28130.0,0.13721157]
[1680599354459,0.02237436,28131.0,28130.0,0.25234599]
[1680599355141,0.02237436,28131.0,28130.0,0.67222818]
[1680599355371,0.02327694,28134.0,28130.0,0.71447871]
[1680599355610,0.02313738,28134.0,28132.0,0.29506071]
[1680599355830,0.41758891,28134.0,28133.0,0.12645459]
[1680599356067,0.41758891,28134.0,28133.0,0.00018]
[1680599356322,0.41758891,28134.0,28132.0,0.12663459]
[1680599356548,0.41758891,28134.0,28132.0,0.42663459]
[1680599356769,0.02313738,28134.0,28132.0,0.42663459]
[1680599357227,0.02313738,28134.0,28132.0,0.59524071]
[1680599357452,0.02313738,28134.0,28133.0,0.12645459]
[1680599357680,0.02313738,28134.0,28133.0,0.21956585]
[1680599358129,0.02313738,28134.0,28133.0,0.63940825]
[1680599358346,0.02313738,28134.0,28133.0,0.63940757]
[1680599358565,0.02313738,28134.0,28133.0,0.65640757]
[1680599359006,0.02313738,28134.0,28133.0,0.63940757]
[1680599359243,0.00612738,28135.0,28133.0,0.64940757]
[1680599359461,0.02078746,28134.0,28133.0,0.22938585]
[1680599359681,0.02078746,28134.0,28133.0,0.31369528]
[1680599359913,0.02078746,28134.0,28133.0,0.22076402]
[1680599360199,0.02078746,28134.0,28133.0,0.21076402]
[1680599360430,0.02112185,28134.0,28133.0,0.21076402]
[1680599360656,0.02112185,28134.0,28133.0,0.22076402]
[1680599361097,0.02112185,28134.0,28133.0,0.21076402]
[1680599361317,0.02112185,28134.0,28133.0,0.22776402]
[1680599361544,0.39071887,28134.0,28133.0,0.08430943]
[1680599361739,0.71451887,28134.0,28133.0,0.09430943]
[1680599361992,0.76872787,28134.0,28133.0,0.01]
[1680599362215,0.71463887,28134.0,28133.0,0.01]
[1680599362437,0.76704143,28134.0,28133.0,0.01]
[1680599362693,0.84665731,28134.0,28133.0,0.01]
[1680599363151,0.84778131,28134.0,28133.0,0.01]
[1680599363376,0.79427431,28134.0,28133.0,0.01]
[1680599364976,0.79427431,28134.0,28133.0,0.09430943]
[1680599366095,0.85120231,28134.0,28133.0,0.01]
[1680599366318,0.84666731,28134.0,28133.0,0.09430943]
[1680599366534,0.79427431,28134.0,28133.0,0.09430943]
[1680599367421,0.71465843,28134.0,28133.0,0.09430943]
[1680599368323,0.34506141,28134.0,28133.0,0.09430943]
[1680599369937,0.39997141,28134.0,28133.0,0.09430943]
[1680599370156,0.75102182,28134.0,28133.0,0.01]
[1680599370591,0.69611182,28134.0,28133.0,0.01]
[1680599370807,0.76863474,28134.0,28133.0,0.01]
[1680599371704,0.82120374,28134.0,28133.0,0.01]
[1680599372514,0.76863474,28134.0,28133.0,0.01]
[1680599373136,0.74483474,28134.0,28133.0,0.01]
[1680599373342,0.74483474,28134.0,28133.0,0.09430943]
[1680599373539,0.67231182,28134.0,28133.0,0.09430943]
[1680599373768,0.67231182,28134.0,28133.0,0.01]
[1680599374138,0.67231182,28134.0,28133.0,0.09430943]
[1680599374886,0.72692182,28134.0,28133.0,0.09430943]
[1680599375104,0.67231182,28134.0,28133.0,0.09430943]
[1680599376243,0.32126141,28134.0,28133.0,0.09430943]
[1680599376479,0.02126141,28134.0,28133.0,0.186177]
[1680599376692,0.02112185,28134.0,28133.0,0.186177]
[1680599379449,0.10481233,28134.0,28133.0,0.186177]
[1680599379665,0.15998589,28134.0,28133.0,0.09430943]
[1680599379877,0.10495189,28134.0,28133.0,0.09430943]
[1680599380091,0.02112185,28134.0,28133.0,0.09430943]
[1680599385274,0.48141468,28134.0,28133.0,0.09430943]
[1680599385493,0.53465224,28134.0,28133.0,0.01]
[1680599385718,0.83465224,28134.0,28133.0,0.01]
[1680599387734,0.78155424,28134.0,28133.0,0.01]
[1680599388170,0.78155424,28134.0,28133.0,0.09430943]
[1680599391459,0.78155424,28134.0,28133.0,0.01]
[1680599391684,0.78155424,28134.0,28133.0,0.09430943]
[1680599391911,0.32126141,28134.0,28133.0,0.09430943]
[1680599392137,0.32126141,28134.0,28133.0,0.20103025]
[1680599394633,0.32126141,28134.0,28133.0,0.09430943]
[1680599394898,0.37743341,28134.0,28133.0,0.01]
[1680599395117,0.32126141,28134.0,28133.0,0.09430943]
[1680599398627,0.70795454,28134.0,28133.0,0.09430943]
[1680599399069,0.76118354,28134.0,28133.0,0.09430943]
[1680599399293,0.84328163,28134.0,28133.0,0.09430943]
[1680599399713,0.76187154,28134.0,28133.0,0.09430943]
[1680599400433,0.76011054,28134.0,28133.0,0.09430943]
[1680599400655,0.32126141,28134.0,28133.0,0.09430943]
[1680599400872,0.02126141,28134.0,28133.0,0.14320966]
[1680599401091,0.32126141,28134.0,28133.0,0.09430943]
[1680599401302,0.37253841,28134.0,28133.0,0.09430943]
[1680599401519,0.32126141,28134.0,28133.0,0.09430943]
[1680599403911,0.32126141,28134.0,28133.0,0.18048868]
[1680599404126,0.02126141,28134.0,28133.0,0.18048868]
[1680599404350,0.32112185,28134.0,28133.0,0.18048868]
[1680599404571,0.32126141,28134.0,28133.0,0.6424977]
[1680599405250,0.02126141,28134.0,28133.0,0.6424977]
[1680599405923,0.02112185,28134.0,28133.0,0.7361638]
[1680599408542,0.02112185,28134.0,28133.0,0.73267904]
[1680599409175,0.02112185,28134.0,28133.0,0.73249904]
[1680599410271,0.02112185,28134.0,28133.0,0.48119497]
[1680599410484,0.02112185,28134.0,28133.0,0.90105883]
[1680599411704,0.02112185,28134.0,28133.0,0.80918129]
[1680599411972,0.02112185,28134.0,28133.0,0.91473709]
[1680599412215,0.02112185,28134.0,28133.0,0.70397945]
[1680599412470,0.00033439,28134.0,28133.0,0.70397945]
[1680599413508,0.02257994,28134.0,28133.0,0.70397945]
[1680599413634,0.02257994,28134.0,28133.0,0.6406215]
[1680599413873,0.02257994,28134.0,28133.0,0.7308413]
[1680599414536,0.02257994,28134.0,28133.0,0.72067298]
[1680599414736,0.02257994,28134.0,28133.0,0.74467298]
[1680599414963,0.02257994,28134.0,28133.0,0.74468393]
[1680599415212,0.02257994,28134.0,28133.0,0.82058393]
[1680599415635,0.02224555,28134.0,28133.0,0.60998366]
[1680599415855,0.02215805,28134.0,28133.0,0.67671834]
[1680599416069,0.02215805,28134.0,28133.0,0.90998366]
[1680599416282,0.00612738,28135.0,28133.0,0.90998366]
[1680599416495,0.00612738,28135.0,28134.0,0.5883437]
[1680599416707,0.00612738,28135.0,28134.0,0.79894371]
[1680599416922,0.00612738,28135.0,28134.0,0.5883437]
[1680599417132,0.00612738,28135.0,28134.0,0.69931864]
[1680599417367,0.02837912,28135.0,28134.0,0.90991865]
[1680599417580,0.02875701,28135.0,28134.0,0.76943881]
[1680599418004,0.02875701,28135.0,28134.0,0.65846387]
[1680599418218,0.02875701,28135.0,28134.0,0.75692023]
[1680599418435,0.00650527,28135.0,28134.0,0.72892023]
[1680599418659,0.00612738,28135.0,28134.0,0.72892023]
[1680599419110,0.00612738,28135.0,28134.0,0.75710023]
[1680599419326,0.00612738,28135.0,28134.0,0.92531961]
[1680599419543,0.00612738,28135.0,28134.0,0.95331594]
[1680599420275,0.00612738,28135.0,28134.0,0.68646387]
[1680599420926,0.00612738,28135.0,28134.0,0.95105876]
[1680599421135,0.00612738,28135.0,28134.0,1.09796486]
[1680599421362,0.00612738,28135.0,28134.0,0.88736485]
[1680599421803,0.00606738,28135.0,28134.0,1.00563388]
[1680599422454,0.00606738,28135.0,28134.0,1.00562608]
[1680599422931,0.00606738,28135.0,28134.0,0.83726387]
[1680599423198,0.00606738,28135.0,28134.0,0.78126387]
[1680599423472,0.00606738,28135.0,28134.0,0.94960172]
[1680599424469,0.00606738,28135.0,28134.0,0.59866386]
[1680599424907,0.00546065,28135.0,28134.0,0.59872386]
[1680599425119,0.00546065,28135.0,28134.0,0.79866386]
[1680599425359,0.00546065,28135.0,28134.0,0.92236386]
[1680599425576,0.00546065,28135.0,28134.0,0.95036386]
[1680599425792,0.00546065,28135.0,28134.0,1.22236386]
[1680599426011,0.00546065,28135.0,28134.0,1.25036386]
[1680599426448,0.01436875,28137.0,28135.0,0.3]
[1680599426717,0.01436875,28137.0,28136.0,1.08092603]
[1680599427149,0.01436875,28137.0,28136.0,1.24914375]
[1680599427363,0.01436875,28137.0,28136.0,1.08092603]
[1680599427813,0.01436875,28137.0,28136.0,1.12314203]
[1680599428073,0.01436875,28137.0,28136.0,1.45714603]
[1680599428300,0.01436875,28137.0,28136.0,1.62526455]
[1680599428517,0.01436875,28137.0,28136.0,1.4547447]
[1680599428737,0.01436875,28137.0,28136.0,1.47136203]
[1680599428959,0.01436875,28137.0,28136.0,1.62526235]
[1680599429390,0.01436875,28137.0,28136.0,1.45474235]
[1680599429603,0.01436875,28137.0,28136.0,1.62526235]
[1680599429818,0.01436875,28137.0,28136.0,1.46895835]
[1680599430036,0.01436875,28137.0,28136.0,1.63947199]
[1680599430267,0.01436875,28137.0,28136.0,1.42916308]
[1680599430532,0.01436875,28137.0,28136.0,1.58086308]
[1680599430981,0.01436875,28137.0,28136.0,1.59866156]
[1680599431202,0.01436875,28137.0,28136.0,1.80892373]
[1680599431427,0.01436875,28137.0,28136.0,1.81742373]
[1680599431653,0.01436875,28137.0,28136.0,1.81734861]
[1680599431872,0.01436875,28137.0,28136.0,1.64928539]
[1680599432527,0.01268575,28137.0,28136.0,1.64831689]
[1680599432749,0.01268575,28137.0,28136.0,2.00302745]
[1680599433407,0.01103999,28137.0,28136.0,1.85142745]
[1680599434497,0.00941325,28137.0,28136.0,1.85142745]
[1680599435160,0.00941325,28137.0,28136.0,2.01940295]
[1680599435383,0.00744202,28137.0,28136.0,2.01940018]
[1680599435664,0.00744202,28137.0,28136.0,1.85142745]
[1680599436104,0.00744202,28137.0,28136.0,2.01937346]
[1680599436549,0.00493447,28137.0,28136.0,1.8173568]
[1680599437204,0.00493447,28137.0,28136.0,1.8033208]
[1680599437425,0.00246154,28137.0,28136.0,1.8033208]
[1680599438336,0.00246154,28137.0,28136.0,1.8175368]
[1680599438562,2.114e-05,28137.0,28136.0,1.85967296]
[1680599439002,2.114e-05,28137.0,28136.0,2.0133761]
[1680599439474,0.05661696,28138.0,28137.0,0.5]
[1680599439697,0.05661696,28138.0,28137.0,0.95356836]
[1680599439914,0.05661696,28138.0,28137.0,1.12408711]
[1680599440368,0.05422682,28138.0,28137.0,1.14556723]
[1680599441034,0.05422682,28138.0,28137.0,1.01963678]
[1680599441471,0.05186901,28138.0,28137.0,1.01963678]
[1680599441692,0.05186901,28138.0,28137.0,1.04763678]
[1680599442136,0.05186901,28138.0,28137.0,1.00305851]
[1680599442347,0.04954869,28138.0,28137.0,1.00305851]
[1680599442803,0.04954869,28138.0,28137.0,1.01743123]
[1680599443026,0.04954869,28138.0,28137.0,0.34950415]
[1680599443280,0.04954869,28138.0,28137.0,0.43346919]
[1680599443504,0.04725796,28138.0,28137.0,0.25073143]
[1680599443728,0.04725796,28138.0,28137.0,0.35062984]
[1680599443947,0.07095796,28138.0,28137.0,0.35930565]
[1680599444170,0.07095796,28138.0,28137.0,0.14939223]
[1680599444397,0.06830453,28138.0,28137.0,0.12139223]
[1680599444631,0.11029817,28138.0,28137.0,0.14939223]
[1680599444859,0.11043773,28138.0,28137.0,0.02149382]
[1680599445085,0.60446536,28138.0,28137.0,0.04949382]
[1680599445306,0.90446536,28138.0,28137.0,0.04949382]
[1680599445542,0.90446536,28138.0,28137.0,0.028]
[1680599445987,0.90446536,28138.0,28134.0,0.10509877]
[1680599445990,1.06268235,28138.0,28134.0,0.00018]
[1680599446220,0.0238,28135.0,28133.0,0.11116148]
[1680599446450,0.351848,28137.0,28133.0,0.11116148]
[1680599446451,0.079702,28134.0,28133.0,0.11116148]
[1680599446684,0.0237,28134.0,28133.0,0.00018]
[1680599446923,0.0237,28134.0,28132.0,0.00018]
[1680599446924,0.73433245,28134.0,28132.0,0.00018]
[1680599447158,0.076511,28133.0,28130.0,0.00018]
[1680599447382,0.0238,28131.0,28129.0,0.09972394]
[1680599447603,0.65772745,28134.0,28129.0,0.00018]
[1680599447604,0.077397,28130.0,28129.0,0.00018]
[1680599447823,0.077397,28130.0,28129.0,0.00012]
[1680599448045,0.077397,28130.0,28128.0,0.18548383]
[1680599448265,0.076899,28129.0,28128.0,0.10150802]
[1680599448489,0.0237,28129.0,28128.0,0.10150802]
[1680599448708,0.0240483,28129.0,28128.0,0.10150802]
[1680599449161,0.0240483,28129.0,28128.0,0.10250802]
[1680599449381,0.0240483,28129.0,28128.0,0.00118]
[1680599449598,0.0240483,28129.0,28128.0,0.001]
[1680599450085,0.0240483,28129.0,28128.0,0.00118]
[1680599450306,0.1269201,28129.0,28128.0,0.00118]
[1680599451372,0.0776193,28129.0,28128.0,0.00118]
[1680599452894,0.0240483,28129.0,28128.0,0.00118]
[1680599453343,0.0240483,28129.0,28128.0,0.00018]
[1680599453585,0.0240483,28129.0,28128.0,0.00118]
[1680599453799,0.0240483,28129.0,28128.0,0.00018]
[1680599454019,0.0300483,28129.0,28128.0,0.00118]
[1680599454242,0.0063483,28129.0,28128.0,0.00118]
[1680599454462,0.0003483,28129.0,28128.0,0.10211974]
[1680599454674,0.0003483,28129.0,28128.0,0.10329974]
[1680599454892,0.0003483,28129.0,28128.0,0.10229974]
[1680599455110,0.0123483,28129.0,28128.0,0.10329974]
[1680599455325,0.0123483,28129.0,28128.0,0.01837793]
[1680599455565,0.0123483,28129.0,28125.0,0.00018]
[1680599455566,0.39460979,28128.0,28125.0,0.00018]
[1680599455783,0.41854935,28128.0,28124.0,0.06214925]
[1680599456450,0.41854935,28128.0,28126.0,0.01599952]
[1680599456886,0.42154935,28128.0,28126.0,0.01599952]
[1680599457105,0.49773037,28128.0,28126.0,0.01599952]
[1680599457326,0.38088757,28127.0,28126.0,0.008]
[1680599457601,0.38102713,28127.0,28126.0,0.008]
[1680599458274,0.38102713,28127.0,28124.0,0.08935485]
[1680599458501,0.40482713,28127.0,28124.0,0.08935485]